Workbook

Sheet Excel_ELISA_example
B2: Assayfit Pro 1.3 | G2: ELISA | V2: Input | AD2: Output
B3: http://www.assayfit.com/ | V3: xdata | W3: ydata | X3: weights | Y3: xlimits | Z3: start | AA3: xknown | AB3: yknown | AD3: xdata | AE3: ydata | AF3: weights | AG3: percent | AH3: yfitted | AI3: resid | AJ3: paraminfo | AK3: param | AL3: yknown | AM3: xfromyknown | AN3: xknown | AO3: yfromxknown | AP3: xcurve | AQ3: ycurve | AR3: infoname | AS3: info
B4: email | V4: 500 | W4: 2.337 | AB4: 2.318
B5: excelelisa@assayfit.com | G5: Input | H5: 1 | I5: 2 | J5: 3 | K5: 4 | L5: 5 | M5: 6 | N5: 7 | O5: 8 | P5: 9 | Q5: 10 | R5: 11 | S5: 12 | V5: 250 | W5: 1.772 | AB5: 1.763
B6: key | G6: A | H6: 2.318 | I6: 2.356 | J6: 0.063 | K6: 0.053 | L6: 0.059 | M6: 0.053 | N6: 0.078 | O6: 0.033 | P6: 0.036 | Q6: 0.042 | R6: 0.036 | S6: 0.042 | V6: 63 | W6: 0.7315 | AB6: 0.722
B7: free | G7: B | H7: 1.763 | I7: 1.781 | J7: 0.068 | K7: 0.057 | L7: 0.055 | M7: 0.055 | N7: 0.065 | O7: 0.041 | P7: 0.05 | Q7: 0.038 | R7: 0.05 | S7: 0.038 | V7: 31 | W7: 0.403 | AB7: 0.402
B8: function | G8: C | H8: 0.722 | I8: 0.741 | J8: 0.093 | K8: 0.069 | L8: 0.059 | M8: 0.071 | N8: 0.153 | O8: 0.038 | P8: 0.043 | Q8: 0.044 | R8: 0.043 | S8: 0.044 | V8: 7.8 | W8: 0.1445 | AB8: 0.142
B9: 401 | G9: D | H9: 0.402 | I9: 0.404 | J9: 0.086 | K9: 0.07 | L9: 0.058 | M9: 0.059 | N9: 0.125 | O9: 0.038 | P9: 0.039 | Q9: 0.035 | R9: 0.039 | S9: 0.035 | V9: 3.9 | W9: 0.104 | AB9: 0.098
B10: =VLOOKUP(B9,A73:D99,2,FALSE) -> 4 parameter logistic | G10: E | H10: 0.142 | I10: 0.147 | J10: 0.173 | K10: 0.116 | L10: 0.06 | M10: 0.077 | N10: 0.149 | O10: 0.04 | P10: 0.043 | Q10: 0.041 | R10: 0.043 | S10: 0.041 | V10: 2 | W10: 0.0815 | AB10: 0.084
B11: =VLOOKUP(B9,A73:D99, 3,FALSE) -> (D + ((A - D) / (1 + ((x / C) ^ B)))) | G11: F | H11: 0.098 | I11: 0.11 | J11: 0.382 | K11: 0.347 | L11: 0.059 | M11: 0.088 | N11: 0.205 | O11: 0.038 | P11: 0.038 | Q11: 0.04 | R11: 0.038 | S11: 0.04 | V11: 0 | W11: 0.0525 | AB11: 0.052
B12: server | G12: G | H12: 0.084 | I12: 0.079 | J12: 0.067 | K12: 0.061 | L12: 0.058 | M12: 0.056 | N12: 0.106 | O12: 0.034 | P12: 0.037 | Q12: 0.033 | R12: 0.037 | S12: 0.033 | AB12: 2.356
B13: https://service3.assayfit.com/ | G13: H | H13: 0.052 | I13: 0.053 | J13: 0.188 | K13: 0.199 | L13: 0.076 | M13: 0.134 | N13: 0.298 | O13: 0.038 | P13: 0.034 | Q13: 0.036 | R13: 0.034 | S13: 0.036 | AB13: 1.781
B14: =VLOOKUP(B13,B35:C71,2,FALSE) -> USA-west | AB14: 0.741
H15: Sample ID | AB15: 0.404
G16: Layout | H16: 1 | I16: 2 | J16: 3 | K16: 4 | L16: 5 | M16: 6 | N16: 7 | O16: 8 | P16: 9 | Q16: 10 | R16: 11 | S16: 12 | AB16: 0.147 | AS16: 1.9609375
G17: A | H17: CAL-500 | I17: CAL-500 | AB17: 0.11
G18: B | H18: CAL-250 | I18: CAL-250 | AB18: 0.079
G19: C | H19: CAL-63 | I19: CAL-63 | AB19: 0.053
G20: D | H20: CAL-31 | I20: CAL-31 | AB20: 0.063
G21: E | H21: CAL-7.8 | I21: CAL-7.8 | AB21: 0.068
G22: F | H22: CAL-3.9 | I22: CAL-3.9 | AB22: 0.093
G23: G | H23: CAL-2 | I23: CAL-2 | AB23: 0.086
G24: H | H24: CAL-0 | I24: CAL-0 | AB24: 0.173
AB25: 0.382
H26: Concentration | AB26: 0.067
G27: Output | H27: 1 | I27: 2 | J27: 3 | K27: 4 | L27: 5 | M27: 6 | N27: 7 | O27: 8 | P27: 9 | Q27: 10 | R27: 11 | S27: 12 | AB27: 0.188
G28: A | H28: 487.7315954 | I28: 513.8343508 | J28: 0.6538898725 | K28: 0 | L28: 0.273863258 | M28: 0 | N28: 2.001971873 | O28: 0 | P28: 0 | Q28: 0 | R28: 0 | S28: 0 | AB28: 0.053
G29: B | H29: 246.8303472 | I29: 252.0343578 | J29: 1.111942895 | K29: 0.07240995586 | L29: 0 | M29: 0 | N29: 0.8386845091 | O29: 0 | P29: 0 | Q29: 0 | R29: 0 | S29: 0 | AB29: 0.057
G30: C | H30: 62.62397947 | I30: 64.75686275 | J30: 3.305216863 | K30: 1.202206415 | L30: 0.273863258 | M30: 1.3817281 | N30: 8.40360922 | O30: 0 | P30: 0 | Q30: 0 | R30: 0 | S30: 0 | AB30: 0.069
A31: link | B31: https://service3.assayfit.com/service.svc/http/Assayfitgetchart?key=free&email=excelelisa@assayfit.com&version=xl13&function=401&xdata=500;250;63;31;7.8;3.9;2;0&ydata=2.337;1.772;0.7315;0.403;0.1445;0.104;0.0815;0.0525&weights=;;;;;;;&start=;;;;;;&yknown=2.318;1.763;0.722;0.402;0.142;0.098;0.084;0.052;2.356;1.781;0.741;0.404;0.147;0.11;0.079;0.053;0.063;0.068;0.093;0.086;0.173;0.382;0.067;0.188;0.053;0.057;0.069;0.07;0.116;0.347;0.061;0.199;0.059;0.055;0.059;0.058;0.06;0.059;0.058;0.076;0.053;0.055;0.071;0.059;0.077;0.088;0.056;0.134;0.078;0.065;0.153;0.125;0.149;0.205;0.106;0.298;0.033;0.041;0.038;0.038;0.04;0.038;0.034;0.038;0.036;0.05;0.043;0.039;0.043;0.038;0.037;0.034;0.042;0.038;0.044;0.035;0.041;0.04;0.033;0.036;0.036;0.05;0.043;0.039;0.043;0.038;0.037;0.034;0.042;0.038;0.044;0.035;0.041;0.04;0.033;0.036&xknown=&xlimits=;; | G31: D | H31: 30.23284996 | I31: 30.41763222 | J31: 2.700272314 | K31: 1.292124658 | L31: 0.17494618 | M31: 0.273863258 | N31: 6.034044024 | O31: 0 | P31: 0 | Q31: 0 | R31: 0 | S31: 0 | AB31: 0.07
A32: response | B32: 500.0;2.337;1.0;100.0;2.33621091607;0.00078908393074; A;3.32248916978;2.318;487.731595389;;;1e-06;0.0563527514064;Run ID:;No runid 250.0;1.772;1.0;75.8;1.77401046958;-0.00201046958019; B;-1.05928640602;1.763;246.830347225;;;1.4255399748e-06;0.0563527535055;; 63.0;0.7315;1.0;31.3;0.725367158977;0.00613284102264; C;226.688216854;0.722;62.6239794678;;;2.03216421975e-06;0.0563527565615;Function:;401.0 31.0;0.403;1.0;17.2;0.410290074971;-0.00729007497072; D;0.0563527468013;0.402;30.2328499571;;;2.8969313306e-06;0.0563527610104;; 7.8;0.1445;1.0;6.2;0.145863630665;-0.00136363066499;;;0.142;7.4731952719;;;4.12969141602e-06;0.0563527674872;UTC DateTime:;3/2/2019 11:25:06 AM 3.9;0.104;1.0;4.5;0.0999274149912;0.00407258500877;;;0.098;3.73483474035;;;5.88704019712e-06;0.0563527769163;; 2.0;0.0815;1.0;3.5;0.0779775643028;0.00352243569722;Fit function:;;0.084;2.52650098115;;;8.39221113424e-06;0.0563527906434;User:;excelelisa@assayfit.com 1e-06;0.0525;1.0;2.2;0.0563527514064;-0.00385275140641;(D + ((A - D) / (1 + ((x / C) ^ B)))) |4 parameter logistic;;0.052;0.0;;;1.19634324488e-05;0.0563528106276;; ;;;;;;;;2.356;513.834350808;;;1.70543511916e-05;0.0563528397211;IP address:;85.148.227.82 ;;;;;;Inv function:;;1.781;252.034357827;;;2.43116593678e-05;0.056352882076;; ;;;;;;(((((A - D) / (y - D)) - 1) ^ (1 / B)) * C);;0.741;64.7568627503;;;3.46572422825e-05;0.0563529437372;Kernel time:;0.016 ;;;;;;;;0.404;30.4176322207;;;4.940528429e-05;0.0563530335049;Service time:;0.327 ;;;;;;;;0.147;7.89611486264;;;7.04292077217e-05;0.0563531641907;Application time:; ;;;;;;;;0.11;4.75999842514;;;0.000100399651001;0.0563533544459;; ;;;;;;;;0.079;2.0897743937;;;0.000143123715957;0.0563536314236;Status code:;0.0 ;;;;;;;;0.053;0.0;;;0.000204028578439;0.0563540346538;; ;;;;;;;;0.063;0.653889872486;;;0.000290850894565;0.056354621685;Info:;http://www.assaycloud.com/ ;;;;;;;;0.068;1.11194289534;;;0.000414619576909;0.0563554762976;; ;;;;;;;;0.093;3.30521686302;;;0.000591056781218;0.0563567204606;Intended use;For research use only ;;;;;;;;0.086;2.70027231351;;;0.000842575069001;0.0563585317388;; ;;;;;;;;0.173;10.0965818641;;;0.00120112444263;0.056361168634;License:;When you use this software you agree with the software license on https://www.assayfit.com/content/agreement.txt ;;;;;;;;0.382;28.3951442785;;;0.00171225090768;0.0563650074764;; ;;;;;;;;0.067;1.02129820224;;;0.00244088211578;0.0563705961317;Sum of Squares:;0.000141118257355 ;;;;;;;;0.188;11.3691642475;;;0.00347957502981;0.0563787321849;; ;;;;;;;;0.053;0.0;;;0.0049602733003;0.0563905767579;Param startvalues:; ;;;;;;;;0.057;0.0724099558645;;;0.00707106787551;0.0564078201945; A;2.337 ;;;;;;;;0.069;1.20220641516;;;0.010080089921;0.0564329232439; B;0.0 ;;;;;;;;0.07;1.29212465839;;;0.014369571132;0.0564694681263; C;146.255886593 ;;;;;;;;0.116;5.27034782508;;;0.0204843980694;0.056522669509; D;0.0525 ;;;;;;;;0.347;25.2217654057;;;0.0292013283076;0.0566001181555;; ;;;;;;;;0.061;0.466130230888;;;0.0416276608197;0.0567128630348;; ;;;;;;;;0.199;12.3046959543;;;0.0593418945558;0.0568769855985;Param LCL:; ;;;;;;;;0.059;0.273863257976;;;0.0845942428695;0.0571158893549; A; ;;;;;;;;0.055;0.0;;;0.120592474848;0.0574636282256; B; ;;;;;;;;0.059;0.273863257976;;;0.171909393556;0.0579697417557; C; ;;;;;;;;0.058;0.174946179978;;;0.245063712558;0.0587062725551; D; ;;;;;;;;0.06;0.370715483092;;;0.349348118623;0.0597779363988;; ;;;;;;;;0.059;0.273863257976;;;0.498009708218;0.0613368307678;; ;;;;;;;;0.058;0.174946179978;;;0.709932746902;0.0636036424447;Param UCL:; ;;;;;;;;0.076;1.82583144601;;;1.01203751013;0.0668980891781; A; ;;;;;;;;0.053;0.0;;;1.44269992668;0.0716823278262; B; ;;;;;;;;0.055;0.0;;;2.05662641712;0.078622245205; C; ;;;;;;;;0.071;1.38172809959;;;2.93180317084;0.0886727247887; D; ;;;;;;;;0.059;0.273863257976;;;4.17940261827;0.10319360334;; ;;;;;;;;0.077;1.91399469598;;;5.95790550312;0.124101814292;; ;;;;;;;;0.088;2.87359637661;;;8.49323246076;0.154059508096;Pearson:; ;;;;;;;;0.056;0.0;;;12.1074423881;0.196682866491; R; ;;;;;;;;0.134;6.79630037065;;;17.2596431168;0.256724255487; p; ;;;;;;;;0.078;2.00197187336;;;24.6043112137;0.340122702047;; ;;;;;;;;0.065;0.83868450913;;;35.0744291875;0.453733839226;Spearman:; ;;;;;;;;0.153;8.40360921984;;;50.0000009;0.604471068891; R; ;;;;;;;;0.125;6.03404402378;;;59.183674351;0.690840747037; p; ;;;;;;;;0.149;8.06527531015;;;68.367347802;0.772619044622;; ;;;;;;;;0.205;12.8159619744;;;77.5510212531;0.8500655627;X Limits:; ;;;;;;;;0.106;4.41903893144;;;86.7346947041;0.923445612068; Low;0.0014125594347 ;;;;;;;;0.298;20.8632643071;;;95.9183681551;0.993019049341; High;36379033.9704 ;;;;;;;;0.033;0.0;;;105.102041606;1.05903456126;; ;;;;;;;;0.041;0.0;;;114.285715057;1.12172691431;Y Limits:; ;;;;;;;;0.038;0.0;;;123.469388508;1.18131587112; Low;0.0563627468013 ;;;;;;;;0.038;0.0;;;132.653061959;1.23800605616; High;3.32247916978 ;;;;;;;;0.04;0.0;;;141.83673541;1.29198735853;; ;;;;;;;;0.038;0.0;;;151.020408861;1.34343562833;; ;;;;;;;;0.034;0.0;;;160.204082312;1.39251352052;; ;;;;;;;;0.038;0.0;;;169.387755763;1.43937139795;; ;;;;;;;;0.036;0.0;;;178.571429214;1.48414824053;; ;;;;;;;;0.05;0.0;;;187.755102665;1.52697252904;; ;;;;;;;;0.043;0.0;;;196.938776116;1.56796308585;; ;;;;;;;;0.039;0.0;;;206.122449567;1.60722986347;; ;;;;;;;;0.043;0.0;;;215.306123018;1.6448746769;; ;;;;;;;;0.038;0.0;;;224.489796469;1.68099187939;; ;;;;;;;;0.037;0.0;;;233.67346992;1.71566898303;; ;;;;;;;;0.034;0.0;;;242.857143371;1.74898722696;; ;;;;;;;;0.042;0.0;;;252.040816822;1.78102209628;; ;;;;;;;;0.038;0.0;;;261.224490273;1.81184379546;; ;;;;;;;;0.044;0.0;;;270.408163724;1.84151767974;; ;;;;;;;;0.035;0.0;;;279.591837176;1.87010464808;; ;;;;;;;;0.041;0.0;;;288.775510627;1.8976615011;; ;;;;;;;;0.04;0.0;;;297.959184078;1.92424126701;; ;;;;;;;;0.033;0.0;;;307.142857529;1.9498934987;; ;;;;;;;;0.036;0.0;;;316.32653098;1.97466454448;; ;;;;;;;;0.036;0.0;;;325.510204431;1.99859779503;; ;;;;;;;;0.05;0.0;;;334.693877882;2.02173390878;; ;;;;;;;;0.043;0.0;;;343.877551333;2.04411101779;; ;;;;;;;;0.039;0.0;;;353.061224784;2.06576491585;; ;;;;;;;;0.043;0.0;;;362.244898235;2.08672923068;; ;;;;;;;;0.038;0.0;;;371.428571686;2.10703558148;; ;;;;;;;;0.037;0.0;;;380.612245137;2.12671372334;; ;;;;;;;;0.034;0.0;;;389.795918588;2.14579167975;; ;;;;;;;;0.042;0.0;;;398.979592039;2.16429586417;; ;;;;;;;;0.038;0.0;;;408.16326549;2.18225119177;; ;;;;;;;;0.044;0.0;;;417.346938941;2.19968118219;; ;;;;;;;;0.035;0.0;;;426.530612392;2.21660805416;; ;;;;;;;;0.041;0.0;;;435.714285843;2.23305281265;; ;;;;;;;;0.04;0.0;;;444.897959294;2.24903532922;; ;;;;;;;;0.033;0.0;;;454.081632745;2.26457441628;; ;;;;;;;;0.036;0.0;;;463.265306196;2.27968789555;; ;;;;;;;;;;;;472.448979647;2.29439266147;; ;;;;;;;;;;;;481.632653098;2.30870473985;; ;;;;;;;;;;;;490.816326549;2.32263934221;; ;;;;;;;;;;;;500.0;2.33621091607;; | G32: E | H32: 7.473195272 | I32: 7.896114863 | J32: 10.09658186 | K32: 5.270347825 | L32: 0.3707154831 | M32: 1.913994696 | N32: 8.06527531 | O32: 0 | P32: 0 | Q32: 0 | R32: 0 | S32: 0 | AB32: 0.116
G33: F | H33: 3.73483474 | I33: 4.759998425 | J33: 28.39514428 | K33: 25.22176541 | L33: 0.273863258 | M33: 2.873596377 | N33: 12.81596197 | O33: 0 | P33: 0 | Q33: 0 | R33: 0 | S33: 0 | AB33: 0.347
B34: Server | G34: G | H34: 2.526500981 | I34: 2.089774394 | J34: 1.021298202 | K34: 0.4661302309 | L34: 0.17494618 | M34: 0 | N34: 4.419038931 | O34: 0 | P34: 0 | Q34: 0 | R34: 0 | S34: 0 | AB34: 0.061
A35: Public | B35: https://service1.assayfit.com/ | C35: EU-west | G35: H | H35: 0 | I35: 0 | J35: 11.36916425 | K35: 12.30469595 | L35: 1.825831446 | M35: 6.796300371 | N35: 20.86326431 | O35: 0 | P35: 0 | Q35: 0 | R35: 0 | S35: 0 | AB35: 0.199
A36: Public | B36: https://service2.assayfit.com/ | C36: USA-east | AB36: 0.059
A37: Public | B37: https://service3.assayfit.com/ | C37: USA-west | H37: Dilution factor | AB37: 0.055
A38: Public | B38: https://service4.assayfit.com/ | C38: Asia | H38: 1 | I38: 2 | J38: 3 | K38: 4 | L38: 5 | M38: 6 | N38: 7 | O38: 8 | P38: 9 | Q38: 10 | R38: 11 | S38: 12 | AB38: 0.059
G39: A | H39: 1 | I39: 1 | J39: 5 | K39: 5 | L39: 5 | M39: 5 | N39: 5 | O39: 5 | P39: 5 | Q39: 5 | R39: 5 | S39: 5 | AB39: 0.058
G40: B | H40: 1 | I40: 1 | J40: 5 | K40: 5 | L40: 5 | M40: 5 | N40: 5 | O40: 5 | P40: 5 | Q40: 5 | R40: 5 | S40: 5 | AB40: 0.06
G41: C | H41: 1 | I41: 1 | J41: 5 | K41: 5 | L41: 5 | M41: 5 | N41: 5 | O41: 5 | P41: 5 | Q41: 5 | R41: 5 | S41: 5 | AB41: 0.059
G42: D | H42: 1 | I42: 1 | J42: 5 | K42: 5 | L42: 5 | M42: 5 | N42: 5 | O42: 5 | P42: 5 | Q42: 5 | R42: 5 | S42: 5 | AB42: 0.058
G43: E | H43: 1 | I43: 1 | J43: 5 | K43: 5 | L43: 5 | M43: 5 | N43: 5 | O43: 5 | P43: 5 | Q43: 5 | R43: 5 | S43: 5 | AB43: 0.076
G44: F | H44: 1 | I44: 1 | J44: 5 | K44: 5 | L44: 5 | M44: 5 | N44: 5 | O44: 5 | P44: 5 | Q44: 5 | R44: 5 | S44: 5 | AB44: 0.053
G45: G | H45: 1 | I45: 1 | J45: 5 | K45: 5 | L45: 5 | M45: 5 | N45: 5 | O45: 5 | P45: 5 | Q45: 5 | R45: 5 | S45: 5 | AB45: 0.055
H46: 1 | I46: 1 | J46: 5 | K46: 5 | L46: 5 | M46: 5 | N46: 5 | O46: 5 | P46: 5 | Q46: 5 | R46: 5 | S46: 5 | AB46: 0.071
AB47: 0.059
H48: Concentration x dilution factor | AB48: 0.077
H49: 1 | I49: 2 | J49: 3 | K49: 4 | L49: 5 | M49: 6 | N49: 7 | O49: 8 | P49: 9 | Q49: 10 | R49: 11 | S49: 12 | AB49: 0.088
G50: A | H50: =H28*H39 -> 487.7315954 | I50: 513.8343508 | J50: =J28*J39 -> 3.269449362 | K50: =K28*K39 -> 0 | L50: 1.36931629 | M50: 0 | N50: 10.00985937 | O50: =O28*O39 -> 0 | P50: 0 | Q50: 0 | R50: 0 | S50: 0 | AB50: 0.056
G51: B | H51: =H29*H40 -> 246.8303472 | I51: 252.0343578 | J51: =J29*J40 -> 5.559714477 | K51: 0.3620497793 | L51: 0 | M51: 0 | N51: =N29*N40 -> 4.193422546 | O51: 0 | P51: 0 | Q51: 0 | R51: 0 | S51: 0 | AB51: 0.134
G52: C | H52: =H30*H41 -> 62.62397947 | I52: 64.75686275 | J52: 16.52608432 | K52: 6.011032076 | L52: 1.36931629 | M52: 6.908640498 | N52: =N30*N41 -> 42.0180461 | O52: 0 | P52: 0 | Q52: 0 | R52: 0 | S52: 0 | AB52: 0.078
G53: D | H53: =H31*H42 -> 30.23284996 | I53: 30.41763222 | J53: 13.50136157 | K53: 6.460623292 | L53: 0.8747308999 | M53: 1.36931629 | N53: =N31*N42 -> 30.17022012 | O53: 0 | P53: 0 | Q53: 0 | R53: 0 | S53: 0 | AB53: 0.065
G54: E | H54: =H32*H43 -> 7.473195272 | I54: 7.896114863 | J54: 50.48290932 | K54: 26.35173913 | L54: 1.853577415 | M54: 9.56997348 | N54: =N32*N43 -> 40.32637655 | O54: 0 | P54: 0 | Q54: 0 | R54: 0 | S54: 0 | AB54: 0.153
G55: F | H55: =H33*H44 -> 3.73483474 | I55: 4.759998425 | J55: 141.9757214 | K55: 126.108827 | L55: 1.36931629 | M55: 14.36798188 | N55: =N33*N44 -> 64.07980987 | O55: 0 | P55: 0 | Q55: 0 | R55: 0 | S55: 0 | AB55: 0.125
G56: G | H56: =H34*H45 -> 2.526500981 | I56: 2.089774394 | J56: 5.106491011 | K56: 2.330651154 | L56: 0.8747308999 | M56: 0 | N56: =N34*N45 -> 22.09519466 | O56: 0 | P56: 0 | Q56: 0 | R56: 0 | S56: 0 | AB56: 0.149
H57: =H35*H46 -> 0 | I57: 0 | J57: 56.84582124 | K57: 61.52347977 | L57: 9.12915723 | M57: 33.98150185 | N57: =N35*N46 -> 104.3163215 | O57: 0 | P57: 0 | Q57: 0 | R57: 0 | S57: 0 | AB57: 0.205
AB58: 0.106
AB59: 0.298
AB60: 0.033
AB61: 0.041
AB62: 0.038
AB63: 0.038
AB64: 0.04
AB65: 0.038
AB66: 0.034
AB67: 0.038
AB68: 0.036
AB69: 0.05
AB70: 0.043
AB71: 0.039
B72: functionlist | AB72: 0.043
A73: 101 | B73: Linear | C73: A + (B * x) | AB73: 0.038
A74: 103 | B74: Passing Bablok linear | C74: A + (B * x) | AB74: 0.037
A75: 201 | B75: 2nd order polynomial | C75: (A + B * x + C * x ^ 2) | AB75: 0.034
A76: 301 | B76: 3rd order polynomial | C76: (A + B * x + C * x ^ 2 + D * x ^ 3) | AB76: 0.042
A77: 401 | B77: 4 parameter logistic | C77: (D + ((A - D) / (1 + ((x / C) ^ B)))) | AB77: 0.038
A78: 402 | B78: 4 parameter logistic Assayfit | C78: (A + ((B - A) / (1 + ((x / C) ^ D)))) | AB78: 0.044
A79: 501 | B79: 5 parameter logistic | C79: (D + ((A - D) /((1 + ((x / C) ^ B)) ^ E))) | AB79: 0.035
A80: 502 | B80: 5 parameter logistic Assayfit | C80: (A + ((B - A) / ((1 + ((x / C) ^ D)) ^ E))) | AB80: 0.041
A81: 601 | B81: Point to point | C81: NA | AB81: 0.04
A82: 602 | B82: Univariate spline | C82: NA | AB82: 0.033
AB83: 0.036
AB84: 0.036
AB85: 0.05
AB86: 0.043
AB87: 0.039
AB88: 0.043
AB89: 0.038
AB90: 0.037
AB91: 0.034
AB92: 0.042
AB93: 0.038
AB94: 0.044
AB95: 0.035
AB96: 0.041
AB97: 0.04
AB98: 0.033
AB99: 0.036

Sheet Excel_example
B2: Assayfit Pro 1.3 | G2: Input | O2: Output
B3: http://www.assayfit.com/ | G3: xdata | H3: ydata | I3: weights | J3: xlimits | K3: start | L3: xknown | M3: yknown | O3: xdata | P3: ydata | Q3: weights | R3: percent | S3: yfitted | T3: resid | U3: paraminfo | V3: param | W3: yknown | X3: xfromyknown | Y3: xknown | Z3: yfromxknown | AA3: xcurve | AB3: ycurve | AC3: infoname | AD3: info
B4: email | E4: 500 | G4: 0 | H4: 1 | M4: 4 | O4: 1e-06 | P4: 1 | Q4: 1 | R4: 13.9 | S4: 1.001257105 | T4: -0.001257105014 | U4: A | V4: 8.780534727 | W4: 4 | X4: 1.27275001 | AA4: 1e-06 | AB4: 1.001257105 | AC4: Run ID: | AD4: Excel_example
B5: excelelisa@assayfit.com | E5: 250 | G5: 1 | H5: 3.5 | O5: 1 | P5: 3.5 | Q5: 1 | R5: 48.6 | S5: 3.487709232 | T5: 0.01229076826 | U5: B | V5: -1.198839927 | AA5: 1.304857356e-06 | AB5: 1.001257193
B6: key | E6: 62.5 | G6: 2 | H6: 5 | O6: 2 | P6: 5 | Q6: 1 | R6: 69.4 | S6: 5.037615742 | T6: -0.03761574203 | U6: C | V6: 1.877964774 | AA6: 1.702652718e-06 | AB6: 1.001257314 | AC6: Function: | AD6: 401
B7: free | E7: 31.25 | G7: 3 | H7: 6 | O7: 3 | P7: 6 | Q7: 1 | R7: 83.3 | S7: 5.955214369 | T7: 0.04478563127 | U7: D | V7: 1.001256871 | AA7: 2.221718923e-06 | AB7: 1.001257481
B8: function | E8: 7.8125 | G8: 4 | H8: 6.5 | O8: 4 | P8: 6.5 | Q8: 1 | R8: 90.3 | S8: 6.542227398 | T8: -0.04222739758 | AA8: 2.899026279e-06 | AB8: 1.00125771 | AC8: UTC DateTime: | AD8: 2019-03-17T15:39:10
B9: 401 | E9: 3.90625 | G9: 5 | H9: 7 | O9: 5 | P9: 7 | Q9: 1 | R9: 97.2 | S9: 6.943540922 | T9: 0.0564590783 | AA9: 3.782815764e-06 | AB9: 1.001258025
B10: =VLOOKUP(B9,A73:D90,2,FALSE) -> 4 parameter logistic | G10: 6 | H10: 7.2 | O10: 6 | P10: 7.2 | Q10: 1 | R10: 100 | S10: 7.232435351 | T10: -0.032435351 | U10: Fit function: | AA10: 4.936034974e-06 | AB10: 1.001258459 | AC10: User: | AD10: excelelisa@assayfit.com
B11: =VLOOKUP(B9,A73:D90, 3,FALSE) -> (D + ((A - D) / (1 + ((x / C) ^ B)))) | U11: (D + ((A - D) / (1 + ((x / C) ^ B)))) |4 parameter logistic | AA11: 6.440821543e-06 | AB11: 1.001259056
B12: server | E12: 1.953125 | AA12: 8.404353366e-06 | AB12: 1.001259878 | AC12: IP address:
B13: https://service1.assayfit.com/ | E13: 0 | U13: Inv function: | AA13: 1.096648231e-05 | AB13: 1.001261008
B14: =VLOOKUP(B13,B35:C71,2,FALSE) -> EU-west | U14: (((((A - D) / (y - D)) - 1) ^ (1 / B)) * C) | AA14: 1.43096951e-05 | AB14: 1.001262562 | AC14: Kernel time: | AD14: 0.016
AA15: 1.867211091e-05 | AB15: 1.0012647 | AC15: Service time: | AD15: 0.337
AA16: 2.436444127e-05 | AB16: 1.001267643 | AC16: Application time: | AD16: 0.56640625
AA17: 3.17921204e-05 | AB17: 1.00127169
AA18: 4.148418215e-05 | AB18: 1.001277259 | AC18: Status code: | AD18: 0
AA19: 5.413094022e-05 | AB19: 1.00128492
AA20: 7.06331555e-05 | AB20: 1.001295459 | AC20: Info: | AD20: http://www.assaycloud.com/
AA21: 9.21661925e-05 | AB21: 1.001309959
AA22: 0.0001202637342 | AB22: 1.001329907 | AC22: Intended use | AD22: For research use only
AA23: 0.0001569270182 | AB23: 1.00135735
AA24: 0.000204767374 | AB24: 1.001395105 | AC24: License: | AD24: When you use this software you agree with the software license on https://www.assayfit.com/content/agreement.txt
AA25: 0.0002671922141 | AB25: 1.001447046
AA26: 0.0003486477259 | AB26: 1.001518504 | AC26: Sum of Squares: | AD26: 0.009596172737
AA27: 0.0004549355496 | AB27: 1.001616809
AA28: 0.0005936259982 | AB28: 1.00175205 | AC28: Param startvalues:
AA29: 0.0007745972502 | AB29: 1.001938101 | AC29: A | AD29: 7.2
AA30: 0.001010738919 | AB30: 1.002194047 | AC30: B | AD30: 0
A31: link | B31: https://service1.assayfit.com/service.svc/http/Assayfitgetcsv?key=free&email=excelelisa@assayfit.com&version=xl13&function=401&xdata=0;1;2;3;4;5;6&ydata=1;3.5;5;6;6.5;7;7.2&weights=;;;;;;&start=;;;;;;&yknown=4&xknown=&xlimits=;;&runid=Excel_example | AA31: 0.001318870114 | AB31: 1.002546138 | AC31: C | AD31: 1.4
A32: response | B32: 1e-06;1.0;1.0;13.9;1.00125710501;-0.00125710501399; A;8.78053472678;4.0;1.27275000993;;;1e-06;1.00125710501;Run ID:;Excel_example 1.0;3.5;1.0;48.6;3.48770923174;0.0122907682586; B;-1.1988399269;;;;;1.30485735552e-06;1.00125719306;; 2.0;5.0;1.0;69.4;5.03761574203;-0.0376157420319; C;1.87796477422;;;;;1.70265271825e-06;1.00125731418;Function:;401.0 3.0;6.0;1.0;83.3;5.95521436873;0.0447856312669; D;1.0012568707;;;;;2.2217189233e-06;1.00125748083;; 4.0;6.5;1.0;90.3;6.54222739758;-0.0422273975827;;;;;;;2.89902627896e-06;1.00125771008;UTC DateTime:;3/17/2019 3:39:10 PM 5.0;7.0;1.0;97.2;6.9435409217;0.0564590782978;;;;;;;3.78281576395e-06;1.00125802549;; 6.0;7.2;1.0;100.0;7.232435351;-0.0324353510018;Fit function:;;;;;;4.93603497415e-06;1.0012584594;User:;excelelisa@assayfit.com ;;;;;;(D + ((A - D) / (1 + ((x / C) ^ B)))) |4 parameter logistic;;;;;;6.44082154312e-06;1.00125905637;; ;;;;;;;;;;;;8.40435336612e-06;1.00125987764;IP address:;85.148.227.82 ;;;;;;Inv function:;;;;;;1.09664823082e-05;1.00126100752;; ;;;;;;(((((A - D) / (y - D)) - 1) ^ (1 / B)) * C);;;;;;1.4309695104e-05;1.00126256196;Kernel time:;0.016 ;;;;;;;;;;;;1.86721109116e-05;1.00126470048;Service time:;0.337 ;;;;;;;;;;;;2.43644412661e-05;1.00126764256;Application time:; ;;;;;;;;;;;;3.17921203991e-05;1.00127169015;; ;;;;;;;;;;;;4.14841821503e-05;1.00127725864;Status code:;0.0 ;;;;;;;;;;;;5.41309402165e-05;1.00128491952;; ;;;;;;;;;;;;7.06331555026e-05;1.00129545899;Info:;http://www.assaycloud.com/ ;;;;;;;;;;;;9.21661925011e-05;1.00130995869;; ;;;;;;;;;;;;0.000120263734215;1.00132990666;Intended use;For research use only ;;;;;;;;;;;;0.000156927018193;1.00135735004;; ;;;;;;;;;;;;0.000204767373968;1.00139510514;License:;When you use this software you agree with the software license on https://www.assayfit.com/content/agreement.txt ;;;;;;;;;;;;0.000267192214093;1.00144704637;; ;;;;;;;;;;;;0.000348647725896;1.00151850371;Sum of Squares:;0.00959617273744 ;;;;;;;;;;;;0.00045493554962;1.00161680947;; ;;;;;;;;;;;;0.000593625998208;1.00175205021;Param startvalues:; ;;;;;;;;;;;;0.000774597250189;1.00193810085; A;7.2 ;;;;;;;;;;;;0.00101073891947;1.00219404669; B;0.0 ;;;;;;;;;;;;0.00131887011358;1.00254613833; C;1.4 ;;;;;;;;;;;;0.00172093736868;1.00303047861; D;1.0 ;;;;;;;;;;;;0.00224557778391;1.00369671435;; ;;;;;;;;;;;;0.00293015868872;1.00461310602;; ;;;;;;;;;;;;0.00382343911782;1.00587348495;Param LCL:; ;;;;;;;;;;;;0.00498904265626;1.00760679193; A; ;;;;;;;;;;;;0.00650998900701;1.00999013769; B; ;;;;;;;;;;;;0.00849460704014;1.01326665366; C; ;;;;;;;;;;;;0.0110842504786;1.01776982891; D; ;;;;;;;;;;;;0.0144633657674;1.02395657528;; ;;;;;;;;;;;;0.0188726292071;1.03245193387;; ;;;;;;;;;;;;0.0246260890388;1.04410911329;Param UCL:; ;;;;;;;;;;;;0.03213353342;1.06008934848; A; ;;;;;;;;;;;;0.0419296774418;1.08196668009; B; ;;;;;;;;;;;;0.0547122480245;1.11186272531; C; ;;;;;;;;;;;;0.0713916792717;1.15261496567; D; ;;;;;;;;;;;;0.0931559578205;1.20797743822;; ;;;;;;;;;;;;0.121555236772;1.28284239209;; ;;;;;;;;;;;;0.158612244804;1.38345167935;Pearson:; ;;;;;;;;;;;;0.206966354308;1.5175329726; R; ;;;;;;;;;;;;0.270061569763;1.69424582372; p; ;;;;;;;;;;;;0.352391825749;1.92376201208;; ;;;;;;;;;;;;0.459821065853;2.21625994746;Spearman:; ;;;;;;;;;;;;0.6000009;2.58014453058; R; ;;;;;;;;;;;;0.710204963265;2.84981404463; p; ;;;;;;;;;;;;0.820409026531;3.10444480415;; ;;;;;;;;;;;;0.930613089796;3.34418577954;X Limits:; ;;;;;;;;;;;;1.04081715306;3.56953792257; Low;2.28992610202e-05 ;;;;;;;;;;;;1.15102121633;3.78119179344; High;154011.594093 ;;;;;;;;;;;;1.26122527959;3.97992975303;; ;;;;;;;;;;;;1.37142934286;4.16656633339;Y Limits:; ;;;;;;;;;;;;1.48163340612;4.34191199106; Low;1.0012668707 ;;;;;;;;;;;;1.59183746939;4.50675150872; High;8.78052472678 ;;;;;;;;;;;;1.70204153265;4.66183169518;; ;;;;;;;;;;;;1.81224559592;4.80785502037;; ;;;;;;;;;;;;1.92244965918;4.94547702987;; ;;;;;;;;;;;;2.03265372245;5.07530614062;; ;;;;;;;;;;;;2.14285778571;5.19790490269;; ;;;;;;;;;;;;2.25306184898;5.31379212609;; ;;;;;;;;;;;;2.36326591224;5.42344547851;; ;;;;;;;;;;;;2.47346997551;5.52730429688;; ;;;;;;;;;;;;2.58367403878;5.62577244697;; ;;;;;;;;;;;;2.69387810204;5.71922112696;; ;;;;;;;;;;;;2.80408216531;5.80799155163;; ;;;;;;;;;;;;2.91428622857;5.89239748134;; ;;;;;;;;;;;;3.02449029184;5.97272757816;; ;;;;;;;;;;;;3.1346943551;6.04924758346;; ;;;;;;;;;;;;3.24489841837;6.12220231862;; ;;;;;;;;;;;;3.35510248163;6.19181751573;; ;;;;;;;;;;;;3.4653065449;6.25830148737;; ;;;;;;;;;;;;3.57551060816;6.32184664644;; ;;;;;;;;;;;;3.68571467143;6.38263088738;; ;;;;;;;;;;;;3.79591873469;6.44081884012;; ;;;;;;;;;;;;3.90612279796;6.49656300788;; ;;;;;;;;;;;;4.01632686122;6.55000479928;; ;;;;;;;;;;;;4.12653092449;6.60127546453;; ;;;;;;;;;;;;4.23673498776;6.65049694476;; ;;;;;;;;;;;;4.34693905102;6.69778264288;; ;;;;;;;;;;;;4.45714311429;6.7432381235;; ;;;;;;;;;;;;4.56734717755;6.78696174876;; ;;;;;;;;;;;;4.67755124082;6.8290452564;; ;;;;;;;;;;;;4.78775530408;6.86957428572;; ;;;;;;;;;;;;4.89795936735;6.9086288563;; ;;;;;;;;;;;;5.00816343061;6.94628380436;; ;;;;;;;;;;;;5.11836749388;6.98260918065;; ;;;;;;;;;;;;5.22857155714;7.01767061358;; ;;;;;;;;;;;;5.33877562041;7.05152964112;; ;;;;;;;;;;;;5.44897968367;7.08424401409;; ;;;;;;;;;;;;5.55918374694;7.11586797394;; ;;;;;;;;;;;;5.6693878102;7.1464525071;; ;;;;;;;;;;;;5.77959187347;7.1760455782;; ;;;;;;;;;;;;5.88979593673;7.20469234421;; ;;;;;;;;;;;;6.0;7.232435351;; | AA32: 0.001720937369 | AB32: 1.003030479 | AC32: D | AD32: 1
AA33: 0.002245577784 | AB33: 1.003696714
B34: Server | AA34: 0.002930158689 | AB34: 1.004613106
A35: Public | B35: https://service1.assayfit.com/ | C35: EU-west | AA35: 0.003823439118 | AB35: 1.005873485 | AC35: Param LCL:
A36: Public | B36: https://service2.assayfit.com/ | C36: USA-east | AA36: 0.004989042656 | AB36: 1.007606792 | AC36: A
A37: Public | B37: https://service3.assayfit.com/ | C37: USA-west | AA37: 0.006509989007 | AB37: 1.009990138 | AC37: B
A38: Public | B38: https://service4.assayfit.com/ | C38: Asia | AA38: 0.00849460704 | AB38: 1.013266654 | AC38: C
AA39: 0.01108425048 | AB39: 1.017769829 | AC39: D
AA40: 0.01446336577 | AB40: 1.023956575
AA41: 0.01887262921 | AB41: 1.032451934
AA42: 0.02462608904 | AB42: 1.044109113 | AC42: Param UCL:
AA43: 0.03213353342 | AB43: 1.060089348 | AC43: A
AA44: 0.04192967744 | AB44: 1.08196668 | AC44: B
AA45: 0.05471224802 | AB45: 1.111862725 | AC45: C
AA46: 0.07139167927 | AB46: 1.152614966 | AC46: D
AA47: 0.09315595782 | AB47: 1.207977438
AA48: 0.1215552368 | AB48: 1.282842392
AA49: 0.1586122448 | AB49: 1.383451679 | AC49: Pearson:
AA50: 0.2069663543 | AB50: 1.517532973 | AC50: R
AA51: 0.2700615698 | AB51: 1.694245824 | AC51: p
AA52: 0.3523918257 | AB52: 1.923762012
AA53: 0.4598210659 | AB53: 2.216259947 | AC53: Spearman:
AA54: 0.6000009 | AB54: 2.580144531 | AC54: R
AA55: 0.7102049633 | AB55: 2.849814045 | AC55: p
AA56: 0.8204090265 | AB56: 3.104444804
AA57: 0.9306130898 | AB57: 3.34418578 | AC57: X Limits:
AA58: 1.040817153 | AB58: 3.569537923 | AC58: Low | AD58: 2.289926102e-05
AA59: 1.151021216 | AB59: 3.781191793 | AC59: High | AD59: 154011.5941
AA60: 1.26122528 | AB60: 3.979929753
AA61: 1.371429343 | AB61: 4.166566333 | AC61: Y Limits:
AA62: 1.481633406 | AB62: 4.341911991 | AC62: Low | AD62: 1.001266871
AA63: 1.591837469 | AB63: 4.506751509 | AC63: High | AD63: 8.780524727
AA64: 1.702041533 | AB64: 4.661831695
AA65: 1.812245596 | AB65: 4.80785502
AA66: 1.922449659 | AB66: 4.94547703
AA67: 2.032653722 | AB67: 5.075306141
AA68: 2.142857786 | AB68: 5.197904903
AA69: 2.253061849 | AB69: 5.313792126
AA70: 2.363265912 | AB70: 5.423445479
AA71: 2.473469976 | AB71: 5.527304297
B72: functionlist | AA72: 2.583674039 | AB72: 5.625772447
A73: 101 | B73: Linear | C73: A + (B * x) | AA73: 2.693878102 | AB73: 5.719221127
A74: 103 | B74: Passing Bablok linear | C74: A + (B * x) | AA74: 2.804082165 | AB74: 5.807991552
A75: 201 | B75: 2nd order polynomial | C75: (A + B * x + C * x ^ 2) | AA75: 2.914286229 | AB75: 5.892397481
A76: 301 | B76: 3rd order polynomial | C76: (A + B * x + C * x ^ 2 + D * x ^ 3) | AA76: 3.024490292 | AB76: 5.972727578
A77: 401 | B77: 4 parameter logistic | C77: (D + ((A - D) / (1 + ((x / C) ^ B)))) | AA77: 3.134694355 | AB77: 6.049247583
A78: 402 | B78: 4 parameter logistic Assayfit | C78: (A + ((B - A) / (1 + ((x / C) ^ D)))) | AA78: 3.244898418 | AB78: 6.122202319
A79: 501 | B79: 5 parameter logistic | C79: (D + ((A - D) /((1 + ((x / C) ^ B)) ^ E))) | AA79: 3.355102482 | AB79: 6.191817516
A80: 502 | B80: 5 parameter logistic Assayfit | C80: (A + ((B - A) / ((1 + ((x / C) ^ D)) ^ E))) | AA80: 3.465306545 | AB80: 6.258301487
A81: 601 | B81: Point to point | C81: NA | AA81: 3.575510608 | AB81: 6.321846646
A82: 602 | B82: Univariate spline | C82: NA | AA82: 3.685714671 | AB82: 6.382630887
AA83: 3.795918735 | AB83: 6.44081884
AA84: 3.906122798 | AB84: 6.496563008
AA85: 4.016326861 | AB85: 6.550004799
AA86: 4.126530924 | AB86: 6.601275465
AA87: 4.236734988 | AB87: 6.650496945
AA88: 4.346939051 | AB88: 6.697782643
AA89: 4.457143114 | AB89: 6.743238124
AA90: 4.567347178 | AB90: 6.786961749
AA91: 4.677551241 | AB91: 6.829045256
AA92: 4.787755304 | AB92: 6.869574286
AA93: 4.897959367 | AB93: 6.908628856
AA94: 5.008163431 | AB94: 6.946283804
AA95: 5.118367494 | AB95: 6.982609181
AA96: 5.228571557 | AB96: 7.017670614
AA97: 5.33877562 | AB97: 7.051529641
AA98: 5.448979684 | AB98: 7.084244014
AA99: 5.559183747 | AB99: 7.115867974
AA100: 5.66938781 | AB100: 7.146452507
AA101: 5.779591873 | AB101: 7.176045578
AA102: 5.889795937 | AB102: 7.204692344
AA103: 6 | AB103: 7.232435351

Sheet Sheet1
